fUSD/lending_fUSD_20240123
["ID","MTS","AMOUNT","RATE_DAILY","PERIOD"]
[312571731,1706014260621,-153.1723593,0.00045,30]
[312571732,1706014260631,-1000.0,0.00045,30]
[312571733,1706014260640,-179.97992911,0.00045,10]
[312571734,1706014260649,-1369.71151379,0.00045,14]
[312571735,1706014260658,-436.96869595,0.00045,30]
[312571736,1706014260667,-1004.7419122,0.00045,30]
[312571737,1706014260676,-809.19695204,0.00045,30]
[312571738,1706014260685,-400000.0,0.00045,30]
[312571739,1706014260695,-320000.0,0.00045,50]
[312571740,1706014260704,-160.664878,0.00045,14]
[312571741,1706014260713,-160.664878,0.00045,14]
[312571742,1706014260722,-151.0,0.00045,14]
[312571743,1706014260732,-151.0,0.00045,14]
[312571744,1706014260741,-151.0,0.00045,14]
[312571745,1706014260750,-151.0,0.00045,14]
[312571746,1706014260760,-151.0,0.00045,14]
[312571747,1706014260769,-950.0,0.00045,3]
[312571748,1706014260778,-151.0,0.00045,14]
[312571749,1706014260787,-231.8339,0.00045,14]
[312571750,1706014260796,-151.0,0.00045,14]
[312571751,1706014260806,-151.0,0.00045,14]
[312571752,1706014260820,-347.01161,0.00045,14]
[312571753,1706014260829,-347.01161,0.00045,14]
[312571754,1706014260838,-347.01161,0.00045,14]
[312571755,1706014260847,-347.011604,0.00045,14]
[312571756,1706014260857,-151.0,0.00045,14]
[312571757,1706014260866,-151.0,0.00045,14]
[312571758,1706014260875,-300.122149,0.00045,14]
[312571759,1706014260884,-300.122149,0.00045,14]
[312571760,1706014260895,-300.122149,0.00045,14]
[312571761,1706014260905,-300.122149,0.00045,14]
[312571762,1706014260914,-151.0,0.00045,14]
[312571763,1706014260923,-151.0,0.00045,14]
[312571764,1706014260933,-463.666274,0.00045,14]
[312571765,1706014260942,-463.666274,0.00045,14]
[312571766,1706014260951,-273.640867,0.00045,14]
[312571767,1706014260960,-273.640867,0.00045,14]
[312571768,1706014260970,-151.0,0.00045,14]
[312571769,1706014260979,-151.0,0.00045,14]
[312571770,1706014260988,-560.117614,0.00045,14]
[312571771,1706014260998,-560.117614,0.00045,14]
[312571772,1706014261008,-560.117614,0.00045,14]
[312571773,1706014261017,-560.117614,0.00045,14]
[312571774,1706014261026,-199.77417,0.00045,14]
[312571775,1706014261036,-199.77417,0.00045,14]
[312571776,1706014261046,-199.77417,0.00045,14]
[312571777,1706014261055,-199.77417,0.00045,14]
[312571778,1706014261064,-500.0,0.00045,10]
[312571779,1706014261075,-1044.37822164,0.00045,2]
[312571780,1706014261084,-14904.59300754,0.00045,2]
[312571781,1706014261093,-2110.0,0.00045,15]
[312571782,1706014261102,-151.0,0.00045,14]
[312571783,1706014261111,-151.0,0.00045,14]
[312571784,1706014261120,-151.0,0.00045,14]
[312571785,1706014261129,-235.783087,0.00045,14]
[312571786,1706014261139,-976.53221,0.00045,14]
[312571787,1706014261148,-976.53221,0.00045,14]
[312571788,1706014261158,-976.53221,0.00045,14]
[312571789,1706014261167,-976.53221,0.00045,14]
[312571790,1706014261176,-151.0,0.00045,14]
[312571791,1706014261187,-151.0,0.00045,14]
[312571792,1706014261196,-892.740247,0.00045,14]
[312571793,1706014261206,-892.740247,0.00045,14]
[312571794,1706014261215,-892.740247,0.00045,14]
[312571795,1706014261225,-892.740247,0.00045,14]
[312571796,1706014261234,-427.321241,0.00045,14]
[312571797,1706014261244,-427.321241,0.00045,14]
[312571798,1706014261253,-427.321241,0.00045,14]
[312571799,1706014261262,-427.321241,0.00045,14]
[312571800,1706014261271,-264.547756,0.00045,2]
[312571801,1706014261281,-450.0,0.0004502,5]
[312571802,1706014261291,-154.73172584,0.00045046,30]
[312571803,1706014261300,-154.86248357,0.00045133,30]
[312571804,1706014261310,-253.0719,0.0004514,30]
[312571805,1706014261319,-444.0123,0.00045148,14]
[312571806,1706014261329,-583.0,0.00045149,2]
[312571807,1706014261338,-327.29243592,0.00045185,30]
[312571808,1706014261348,-8000.0,0.000452,2]
[312571809,1706014261357,-191.32,0.00045205,2]
[312571810,1706014261366,-938.2080968,0.0004524,4]
[312571811,1706014261376,-206.0,0.00045243,36]
[312571812,1706014261385,-155.33183537,0.00045311,30]
[312571813,1706014261395,-154.92777301,0.00045344,30]
[312571814,1706014261404,-152.0,0.0004535,9]
[312571815,1706014261414,-155.02344665,0.0004535,5]
[312571816,1706014261423,-152.0,0.0004535,5]
[312571817,1706014261432,-327.29243592,0.00045389,30]
[312571818,1706014261441,-150.0,0.00045422,2]
[312571819,1706014261450,-154.39499694,0.00045422,30]
[312571820,1706014261460,-150.0,0.00045425,2]
[312571821,1706014261469,-150.0,0.00045425,2]
[312571822,1706014261479,-150.0,0.00045425,2]
[312571823,1706014261488,-444.0123,0.00045448,14]
[312571824,1706014261498,-266.40179261,0.00045449,30]
[312571825,1706014261508,-327.29243592,0.00045465,30]
[312571826,1706014261517,-2110.0,0.000455,15]
[312571827,1706014261527,-1000.0,0.00045516,4]
[312571828,1706014261537,-154.92777301,0.0004553,30]
[312571829,1706014261546,-6848.86152782,0.00045567,2]
[312571830,1706014261556,-1000.0,0.00045569,30]
[312571831,1706014261566,-150.0,0.00045589,10]
[312571832,1706014261577,-204.54972174,0.000456,2]
[312571833,1706014261586,-437.25679596,0.000456,28]
[312571834,1706014261596,-266.40179261,0.0004561,30]
[312571835,1706014261606,-266.40179261,0.00045637,30]
[312571836,1706014261615,-10000.0,0.0004568,48]
[312571837,1706014261625,-1104.79376073,0.00045689,5]
[312571838,1706014261634,-2117.87962508,0.00045698,7]
[312571839,1706014261644,-444.0123,0.00045748,14]
[312571840,1706014261654,-266.40179261,0.00045786,30]
[312571841,1706014261663,-204.0,0.0004581,2]
[312571842,1706014261673,-154.12274306,0.00045823,28]
[312571843,1706014261683,-48831.93306439,0.0004588,100]
[312571844,1706014261693,-157.0,0.000459,30]
[312571845,1706014261702,-941.43,0.0004598,2]
[312571846,1706014261712,-266.40179261,0.00045981,30]
[312571847,1706014261722,-100000.0,0.00046,36]
[312571848,1706014261731,-3998.0,0.00046,30]
[312571849,1706014261741,-235398.97,0.00046,50]
[312571850,1706014261751,-161.7900784,0.00046,4]
[312571851,1706014261760,-160.664878,0.00046,14]
[312571852,1706014261770,-160.664878,0.00046,14]
[312571853,1706014261779,-151.0,0.00046,14]
[312571854,1706014261788,-151.0,0.00046,14]
[312571855,1706014261798,-151.0,0.00046,14]
[312571856,1706014261812,-463.666274,0.00046,14]
[312571857,1706014261823,-463.666274,0.00046,14]
[312571858,1706014261832,-273.640867,0.00046,14]
[312571859,1706014261842,-273.640867,0.00046,14]
[312571860,1706014261852,-2110.0,0.00046,15]
[312571861,1706014261861,-150.0,0.00046117,2]
[312571862,1706014261871,-292.16,0.00046117,2]
[312571863,1706014261880,-292.16,0.00046117,2]
[312571864,1706014261889,-292.16,0.00046117,2]
[312571865,1706014261901,-292.16,0.00046117,2]
[312571866,1706014261910,-292.16,0.00046117,2]
[312571867,1706014261919,-321.83,0.00046117,2]
[312571868,1706014261929,-444.0123,0.00046148,14]
[312571869,1706014261939,-154.92777301,0.00046163,30]
[312571870,1706014261948,-158.14,0.000462,5]
[312571871,1706014261958,-158.14,0.000462,5]
[312571872,1706014261968,-158.14,0.000462,5]
[312571873,1706014261977,-158.14,0.000462,5]
[312571874,1706014261987,-158.14,0.000462,5]
[312571875,1706014261997,-158.14,0.000462,5]
[312571876,1706014262006,-152.88,0.000462,5]
[312571877,1706014262016,-152.88,0.000462,5]
[312571878,1706014262026,-152.88,0.000462,5]
[312571879,1706014262035,-152.88,0.000462,5]
[312571880,1706014262045,-152.88,0.000462,5]
[312571881,1706014262054,-152.88,0.000462,5]
[312571882,1706014262064,-152.88,0.000462,5]
[312571883,1706014262074,-152.88,0.000462,5]
[312571884,1706014262084,-152.88,0.000462,5]
[312571885,1706014262094,-152.88,0.000462,5]
[312571886,1706014262103,-152.88,0.000462,5]
[312571887,1706014262113,-152.88,0.000462,5]
[312571888,1706014262123,-152.88,0.000462,5]
[312571889,1706014262133,-152.88,0.000462,5]
[312571890,1706014262144,-2527.34,0.000462,5]
[312571891,1706014262153,-2527.34,0.000462,5]
[312571892,1706014262163,-2527.34,0.000462,5]
[312571893,1706014262173,-2527.34,0.000462,5]
[312571894,1706014262183,-2527.34,0.000462,5]
[312571895,1706014262193,-2527.34,0.000462,5]
[312571896,1706014262203,-2527.34,0.000462,5]
[312571897,1706014262213,-2527.34,0.000462,5]
[312571898,1706014262223,-2527.34,0.000462,5]
[312571899,1706014262233,-2527.34,0.000462,5]
[312571900,1706014262244,-2527.34,0.000462,5]
[312571901,1706014262254,-2527.34,0.000462,5]
[312571902,1706014262265,-2527.34,0.000462,5]
[312571903,1706014262275,-2527.34,0.000462,5]
[312571904,1706014262285,-2527.34,0.000462,5]
[312571905,1706014262295,-2527.34,0.000462,5]
[312571906,1706014262305,-2527.34,0.000462,5]
[312571907,1706014262314,-2527.34,0.000462,5]
[312571908,1706014262324,-2527.34,0.000462,5]
[312571909,1706014262334,-2527.34,0.000462,5]
[312571910,1706014262344,-200.82653341,0.000462,2]
[312571911,1706014262353,-154.39499694,0.00046264,30]
[312571912,1706014262363,-163.5013,0.0004641,120]
[312571913,1706014262373,-150.0,0.00046431,2]
[312571914,1706014262382,-444.0123,0.00046448,14]
[312571915,1706014262392,-327.29243592,0.00046467,30]
[312571916,1706014262402,-1104.36,0.000465,15]
[312571917,1706014262411,-154.92777301,0.00046565,30]
[312571918,1706014262420,-187.5,0.00046575,120]
[312571919,1706014262430,-1000.0,0.000466,2]
[312571920,1706014262439,-6356.0,0.000466,2]
[312571921,1706014262449,-173.12494063,0.00046645,30]
[312571922,1706014262458,-158.09690191,0.00046657,30]
[312571923,1706014262468,-444.0123,0.00046748,14]
[312571924,1706014262477,-5200.0,0.000468,32]
[312571925,1706014262487,-416.97,0.000468,2]
[312571926,1706014262497,-327.29243592,0.00046805,30]
[312571927,1706014262507,-160.0,0.00046844,5]
[312571928,1706014262517,-162.47463578,0.00046865,30]
[312571929,1706014262527,-834.150048,0.00046868,2]
[312571930,1706014262537,-381.93576223,0.00046898,30]
[312571931,1706014262548,-191.55414778,0.00046899,5]
[312571932,1706014262557,-30569.24738585,0.00046899,4]
[312571933,1706014262567,-1205.08915547,0.000469,4]
[312571934,1706014262577,-1205.98651319,0.000469,120]
[312571935,1706014262587,-100000.0,0.000469,31]
[312571936,1706014262596,-154764.0,0.000469,30]
[312571937,1706014262606,-204.0,0.000469,2]
[312571938,1706014262616,-151.0,0.000469,14]
[312571939,1706014262626,-151.0,0.000469,14]
[312571940,1706014262637,-151.0,0.000469,14]
[312571941,1706014262646,-300.122149,0.000469,14]
[312571942,1706014262656,-300.122158,0.000469,14]
[312571943,1706014262666,-151.0,0.000469,14]
[312571944,1706014262676,-151.0,0.000469,14]
[312571945,1706014262685,-560.117614,0.000469,14]
[312571946,1706014262695,-560.117614,0.000469,14]
[312571947,1706014262705,-199.77417,0.000469,14]
[312571948,1706014262714,-199.77417,0.000469,14]
[312571949,1706014262725,-151.0,0.000469,14]
[312571950,1706014262734,-976.53221,0.000469,14]
[312571951,1706014262744,-976.532214,0.000469,14]
[312571952,1706014262753,-151.0,0.000469,14]
[312571953,1706014262763,-892.740247,0.000469,14]
[312571954,1706014262773,-892.740246,0.000469,14]
[312571955,1706014262783,-427.321241,0.000469,14]
[312571956,1706014262793,-427.321242,0.000469,14]
[312571957,1706014262803,-150.67,0.00046939,2]
[312571958,1706014262814,-266.40179261,0.00046943,30]
[312571959,1706014262824,-100000.0,0.00047,37]
[312571960,1706014262834,-2000.0,0.00047,2]
[312571961,1706014262843,-1000.0,0.00047,120]
[312571962,1706014262853,-865.01,0.00047,7]
[312571963,1706014262863,-1000.0,0.00047,3]
[312571964,1706014262874,-260.79700803,0.00047,27]
[312571965,1706014262883,-157.0,0.00047,30]
[312571966,1706014262894,-1000.0,0.00047011,4]
[312571967,1706014262904,-150.0,0.00047068,2]
[312571968,1706014262914,-150.0,0.00047068,2]
[312571969,1706014262923,-150.0,0.00047068,2]
[312571970,1706014262933,-150.0,0.00047068,2]
[312571971,1706014262942,-150.0,0.00047068,2]
[312571972,1706014262952,-150.0,0.00047068,2]
[312571973,1706014262962,-150.0,0.00047068,2]
[312571974,1706014263194,-150.0,0.00047068,2]
[312571975,1706014263204,-654.91,0.00047135,2]
[312571976,1706014263214,-444.0123,0.00047148,14]
[312571977,1706014263223,-154.39499694,0.0004718,30]
[312571978,1706014263233,-1104.79376073,0.00047268,5]
[312571979,1706014263243,-154.12274306,0.00047438,34]
[312571980,1706014263252,-150.0,0.0004744,2]
[312571981,1706014263262,-266.40179261,0.00047441,30]
[312571982,1706014263273,-444.0123,0.00047448,14]
[312571983,1706014263282,-657.81618824,0.000475,10]
[312571984,1706014263293,-559000.0,0.000475,60]
[312571985,1706014263302,-160.664878,0.000475,14]
[312571986,1706014263312,-160.664878,0.000475,14]
[312571987,1706014263321,-151.0,0.000475,14]
[312571988,1706014263332,-162.627218,0.000475,14]
[312571989,1706014263341,-156.362586,0.000475,14]
[312571990,1706014263351,-151.0,0.000475,14]
[312571991,1706014263360,-463.666274,0.000475,14]
[312571992,1706014263369,-463.666275,0.000475,14]
[312571993,1706014263378,-273.640867,0.000475,14]
[312571994,1706014263388,-273.640861,0.000475,14]
[312571995,1706014263397,-157.58909237,0.00047549,30]
[312571996,1706014263407,-173.71629929,0.00047559,30]
[312571997,1706014263416,-444.0123,0.00047748,14]
[312571998,1706014263425,-100000.0,0.000478,30]
[312571999,1706014263435,-363.32,0.00047821,15]
[312572000,1706014263444,-546.0,0.0004789,2]
[312572001,1706014263454,-558.0,0.0004789,2]
[312572002,1706014263463,-500000.0,0.000479,34]
[312572003,1706014263472,-474160.0,0.000479,30]
[312572004,1706014263481,-200000.0,0.000479,31]
[312572005,1706014263491,-50000.0,0.000479,30]
[312572006,1706014263500,-160.664878,0.000479,14]
[312572007,1706014263510,-160.664881,0.000479,14]
[312572008,1706014263519,-299.857158,0.000479,14]
[312572009,1706014263528,-2237.89665869,0.000479,2]
[312572010,1706014263538,-6356.95310024,0.000479,2]
[312572011,1706014263547,-500.0,0.00047983,4]
[312572012,1706014263557,-74670.5750953,0.0004799,2]
[312572013,1706014263567,-500.0,0.00047991,4]
[312572014,1706014263579,-508.06641449,0.00047998,7]
[312572015,1706014263589,-100000.0,0.00048,38]
[312572016,1706014263598,-5749.630941,0.00048,52]
[312572017,1706014263607,-500.0,0.00048,4]
[312572018,1706014263617,-500.0,0.00048001,4]
[312572019,1706014263626,-500.0,0.00048009,4]
[312572020,1706014263636,-500.0,0.0004801,4]
[312572021,1706014263645,-157.0,0.000481,60]
[312572022,1706014263655,-444.0123,0.00048148,14]
[312572023,1706014263665,-5800.0,0.00048249,7]
[312572024,1706014263674,-266.40179261,0.00048264,30]
[312572025,1706014263683,-154.39499694,0.00048335,30]
[312572026,1706014263693,-154.92777301,0.00048338,30]
[312572027,1706014263702,-158.43292265,0.00048405,30]
[312572028,1706014263711,-444.0123,0.00048448,14]
[312572029,1706014263721,-151.0,0.00048448,2]
[312572030,1706014263730,-150.0,0.0004845,2]
[312572031,1706014263740,-197.6403383,0.00048499,8]
[312572032,1706014263749,-292.85015482,0.00048499,8]
[312572033,1706014263758,-1000.0,0.00048505,4]
[312572034,1706014263768,-1000.0,0.00048652,30]
[312572035,1706014263778,-1000.0,0.00048652,30]
[312572036,1706014263789,-1000.0,0.00048652,30]
[312572037,1706014263798,-1000.0,0.00048652,30]
[312572038,1706014263810,-1000.0,0.00048652,30]
[312572039,1706014263826,-1000.0,0.00048652,30]
[312572040,1706014263835,-1000.0,0.00048652,30]
[312572041,1706014263845,-1000.0,0.00048652,30]
[312572042,1706014263856,-1000.0,0.00048652,30]
[312572043,1706014263867,-1000.0,0.00048652,30]
[312572044,1706014263876,-1000.0,0.00048652,30]
[312572045,1706014263886,-154.86248357,0.00048714,30]
[312572046,1706014263897,-444.0123,0.00048748,14]
[312572047,1706014263907,-266.40179261,0.00048762,30]
[312572048,1706014263916,-266.40179261,0.00048773,30]
[312572049,1706014263925,-156.14673503,0.00048795,30]
[312572050,1706014263934,-4660.0,0.000488,26]
[312572051,1706014263944,-327.29243592,0.00048803,30]
[312572052,1706014263954,-154.86248357,0.00048826,30]
[312572053,1706014263964,-5039.0211035,0.0004883,28]
[312572054,1706014263975,-1104.79376073,0.00048847,5]
[312572055,1706014263984,-395.18989333,0.00048859,29]
[312572056,1706014263993,-500000.0,0.000489,35]
[312572057,1706014264003,-600000.0,0.000489,34]
[312572058,1706014264012,-4302.11012166,0.000489,30]
[312572059,1706014264022,-5387.63036919,0.000489,30]
[312572060,1706014264032,-168.4040061,0.000489,62]
[312572061,1706014264044,-206.0,0.00048932,42]
[312572062,1706014264054,-266.40179261,0.00048945,30]
[312572063,1706014264064,-157.58909238,0.00048991,30]
[312572064,1706014264074,-100000.0,0.00049,39]
[312572065,1706014264083,-16788.71864571,0.00049,4]
[312572066,1706014264093,-400.0,0.00049,30]
[312572067,1706014264102,-335.21257455,0.00049,120]
[312572068,1706014264111,-209.35238954,0.00049,4]
[312572069,1706014264121,-1050.0,0.00049,3]
[312572070,1706014264130,-250.0,0.00049,30]
[312572071,1706014264139,-200.69,0.00049041,2]
[312572072,1706014264149,-154.12274306,0.00049054,41]
[312572073,1706014264158,-154.86248357,0.00049057,30]
[312572074,1706014264167,-444.0123,0.00049148,14]
[312572075,1706014264177,-152.0,0.000492,60]
[312572076,1706014264186,-157.0,0.000492,60]
[312572077,1706014264195,-155.33183537,0.0004926,30]
[312572078,1706014264205,-327.29243592,0.0004926,30]
[312572079,1706014264214,-302.0,0.00049262,4]
[312572080,1706014264224,-1000.0,0.000493,2]
[312572081,1706014264233,-200.0,0.00049315,30]
[312572082,1706014264243,-200.0,0.00049315,30]
[312572083,1706014264253,-200.0,0.00049315,30]
[312572084,1706014264262,-200.0,0.00049315,30]
[312572085,1706014264271,-375.0,0.00049315,120]
[312572086,1706014264281,-1000.0,0.00049315,120]
[312572087,1706014264291,-1000.0,0.00049315,120]
[312572088,1706014264301,-1000.0,0.00049315,120]
[312572089,1706014264310,-1000.0,0.00049315,120]
[312572090,1706014264319,-1000.0,0.00049315,120]
[312572091,1706014264330,-1000.0,0.00049315,120]
[312572092,1706014264340,-1000.0,0.00049315,120]
[312572093,1706014264349,-1000.0,0.00049315,120]
[312572094,1706014264359,-1000.0,0.00049315,120]
[312572095,1706014264368,-1000.0,0.00049315,120]
[312572096,1706014264378,-1042.76784355,0.00049315,120]
[312572097,1706014264388,-8918.99882934,0.00049378,32]
[312572099,1706014264397,-5000.0,0.00049378,29]
[312572100,1706014264406,-5000.0,0.00049378,27]
[312572101,1706014264416,-5000.0,0.00049378,32]
[312572102,1706014264425,-654.91,0.00049399,2]
[312572103,1706014264435,-245.83582038,0.0004942,11]
[312572104,1706014264444,-22540.37865562,0.0004944,12]
[312572105,1706014264453,-444.0123,0.00049448,14]
[312572106,1706014264467,-150.0,0.00049459,2]
[312572107,1706014264477,-266.40179261,0.00049465,30]
[312572108,1706014264487,-154.39499694,0.00049491,30]
[312572109,1706014264496,-266.40179261,0.00049495,30]
[312572110,1706014264506,-167.97,0.00049534,30]
[312572111,1706014264516,-150.0,0.00049534,30]
[312572112,1706014264525,-150.0,0.00049534,30]
[312572113,1706014264535,-150.0,0.00049534,30]
[312572114,1706014264544,-150.0,0.00049534,30]
[312572115,1706014264554,-177.99355228,0.00049576,30]
[312572116,1706014264564,-287.31876683,0.00049589,7]
[312572117,1706014264574,-154.92777301,0.0004962,30]
[312572118,1706014264583,-47363.16,0.000497,35]
[312572119,1706014264592,-154.86248357,0.0004973,30]
[312572120,1706014264601,-444.0123,0.00049748,14]
[312572121,1706014264611,-158.43292266,0.00049779,30]
[312572122,1706014264620,-1917.4258574,0.000498,120]
[312572123,1706014264630,-176.8,0.000498,120]
[312572124,1706014264639,-154.73172584,0.00049853,30]
[312572125,1706014264648,-4706.671699,0.000499,120]
[312572126,1706014264658,-10000.0,0.000499,14]
[312572127,1706014264667,-500000.0,0.000499,35]
[312572128,1706014264676,-600000.0,0.000499,35]
[312572129,1706014264686,-154.92777301,0.00049941,30]
[312572130,1706014264695,-262.54980152,0.0004998,5]
[312572131,1706014264704,-629.37658148,0.0004998,5]
[312572132,1706014264714,-315.0,0.0004998,5]
[312572133,1706014264723,-646.58041895,0.0004998,5]
[312572134,1706014264734,-266.40179261,0.00049983,30]
[312572135,1706014264743,-100000.0,0.0005,40]
[312572136,1706014264753,-974.13279048,0.0005,120]
[312572137,1706014264764,-268.9859369,0.0005,4]
[312572138,1706014264774,-2575.34571999,0.0005,30]
[312572139,1706014264785,-182.86291573,0.0005,4]
[312572140,1706014264797,-2953.14494726,0.0005,4]
[312572141,1706014264811,-155.0,0.0005,4]
[312572142,1706014264831,-30523.84473775,0.0005,15]
[312572143,1706014264847,-50000.0,0.0005,120]
[312572144,1706014264856,-667.45,0.0005,7]
[312572145,1706014264866,-500.0,0.0005,7]
[312572146,1706014264876,-500.0,0.0005,14]
[312572147,1706014264886,-15088.288552,0.0005,60]
[312572148,1706014264896,-500.0,0.0005,30]
[312572149,1706014264905,-1000000.0,0.0005,120]
[312572150,1706014264915,-1472.33451323,0.0005,10]
[312572151,1706014264926,-165.38821264,0.0005,4]
[312572152,1706014264937,-539.12877157,0.0005,30]
[312572153,1706014264948,-1000.0,0.0005,12]
[312572154,1706014264958,-26299.2023832,0.0005,30]
[312572155,1706014264968,-500.0,0.0005,30]
[312572156,1706014264978,-50000.0,0.0005,15]
[312572157,1706014264987,-50000.0,0.0005,15]
[312572158,1706014264997,-50000.0,0.0005,15]
[312572159,1706014265006,-50000.0,0.0005,15]
[312572160,1706014265016,-12579.15,0.0005,15]
[312572161,1706014265027,-190.2,0.0005,120]
[312572162,1706014265037,-1000.0,0.0005,30]
[312572163,1706014265047,-1000000.0,0.0005,120]
[312572164,1706014265057,-500.0,0.0005,6]
[312572165,1706014265068,-1003.51924511,0.0005,120]
[312572166,1706014265079,-50142.02116167,0.0005,30]
[312572167,1706014265088,-1815.47949281,0.0005,7]
[312572168,1706014265099,-160.0,0.0005,5]
[312572169,1706014265109,-300.0,0.0005,27]
[312572170,1706014265119,-1000.0,0.0005,120]
[312572171,1706014265129,-62526.0,0.0005,10]
[312572172,1706014265138,-238.37621144,0.0005,7]
[312572173,1706014265148,-500.0,0.0005,16]
[312572174,1706014265157,-2237.89665869,0.0005,2]
[312572175,1706014265167,-3053.90127665,0.0005,60]
[312572176,1706014265176,-2034.67385857,0.0005,60]
[312572177,1706014265185,-150.98,0.0005,2]
[312572178,1706014265195,-150.98,0.0005,2]
[312572179,1706014265205,-150.98,0.0005,2]
[312572180,1706014265215,-150.98,0.0005,2]
[312572181,1706014265225,-150.98,0.0005,2]
[312572182,1706014265235,-150.98,0.0005,2]
[312572183,1706014265245,-150.98,0.0005,2]
[312572184,1706014265254,-150.98,0.0005,2]
[312572185,1706014265264,-150.98,0.0005,2]
[312572186,1706014265274,-150.98,0.0005,2]
[312572187,1706014265283,-150.98,0.0005,2]
[312572188,1706014265293,-150.98,0.0005,2]
[312572189,1706014265302,-150.98,0.0005,2]
[312572190,1706014265312,-150.98,0.0005,2]
[312572191,1706014265321,-150.98,0.0005,2]
[312572192,1706014265331,-150.98,0.0005,2]
[312572193,1706014265341,-150.98,0.0005,2]
[312572194,1706014265350,-150.98,0.0005,2]
[312572195,1706014265359,-150.98,0.0005,2]
[312572196,1706014265368,-150.98,0.0005,2]
[312572197,1706014265378,-150.98,0.0005,2]
[312572198,1706014265387,-150.98,0.0005,2]
[312572199,1706014265396,-150.98,0.0005,2]
[312572200,1706014265405,-150.98,0.0005,2]
[312572201,1706014265415,-150.98,0.0005,2]
[312572202,1706014265425,-150.98,0.0005,2]
[312572203,1706014265435,-150.98,0.0005,2]
[312572204,1706014265444,-150.98,0.0005,2]
[312572205,1706014265533,-150.98,0.0005,2]
[312572206,1706014265543,-150.98,0.0005,2]
[312572207,1706014265552,-150.98,0.0005,2]
[312572208,1706014265561,-150.98,0.0005,2]
[312572209,1706014265570,-150.98,0.0005,2]
[312572210,1706014265579,-150.98,0.0005,2]
[312572211,1706014265589,-150.98,0.0005,2]
[312572212,1706014265598,-150.98,0.0005,2]
[312572213,1706014265607,-150.98,0.0005,2]
[312572214,1706014265616,-150.98,0.0005,2]
[312572215,1706014265625,-150.0,0.0005,27]
[312572216,1706014265634,-450.0,0.0005002,5]
[312572217,1706014265644,-604.0,0.0005009,7]
[312572218,1706014265653,-162.47463578,0.00050115,60]
[312572219,1706014265662,-444.0123,0.00050148,16]
[312572220,1706014265671,-234.19901135,0.00050148,60]
[312572221,1706014265681,-160.00953017,0.000502,30]
[312572222,1706014265690,-327.29243592,0.00050226,60]
[312572223,1706014265699,-154.92777301,0.00050286,60]
[312572224,1706014265709,-152.0,0.000503,60]
[312572225,1706014265718,-157.0,0.000503,60]
[312572226,1706014265728,-155.33183537,0.00050308,60]
[312572227,1706014265738,-153.90742567,0.00050325,60]
[312572228,1706014265748,-174.27167451,0.00050338,60]
[312572229,1706014265758,-158.14,0.000504,6]
[312572230,1706014265768,-158.14,0.000504,6]
[312572231,1706014265777,-158.14,0.000504,6]